{"text_format":"1","workbook":"xlsx","n_sheets":2,"sheets":["Ship","Tables"],"not_rendered":{"charts":0,"images":0,"macros":1,"external_links":0,"defined_names":0,"comments":0,"pivot_tables":0},"unopened":[],"bounds":{"document_bytes":16777216,"sheet_cells":100000,"rows_first":2000,"rows_last":500,"rows_between":2000,"halvings":0,"cell_chars":16384,"cell_head_chars":4096},"cells_cut":0,"cells_raw":0,"read":"whole","date_system":"1900"}

{"sheet":"Ship","index":0,"n_rows":71,"n_cols":54,"rows_kept":71,"cut":false,"hidden":false,"merged":[[1,23,1,24],[6,23,6,24],[1,19,1,20],[8,19,8,20],[2,19,3,20],[9,19,10,20],[15,19,15,20],[16,19,17,20],[2,28,3,29],[1,28,1,29],[10,28,10,29],[7,28,7,29],[4,28,4,29],[8,29,9,29],[5,29,6,29],[11,28,12,29],[1,49,1,52],[4,50,4,52],[5,50,5,52],[20,49,21,49],[20,50,21,50],[1,53,1,56],[6,52,7,52],[8,52,9,52],[2,48,3,48],[2,53,3,56],[4,53,5,56],[6,53,7,56],[8,53,9,56],[8,49,9,49],[6,49,7,49],[8,50,9,50],[6,50,7,50],[8,51,9,51],[6,51,7,51],[20,51,21,51],[20,52,21,52],[20,53,21,56],[2,49,3,52],[42,52,43,52],[42,53,43,56],[30,49,31,49],[30,50,31,50],[30,51,31,51],[30,52,31,52],[30,53,31,56],[34,49,35,49],[34,50,35,50],[34,51,35,51],[34,52,35,52],[34,53,35,56],[37,49,37,52],[37,53,37,56],[22,49,23,49],[22,50,23,50],[22,51,23,51],[22,52,23,52],[22,53,23,56],[10,53,11,56],[10,49,11,49],[10,52,11,52],[10,50,11,50],[10,51,11,51],[18,49,19,49],[18,50,19,50],[18,51,19,51],[18,52,19,52],[18,53,19,56],[5,3,5,4],[5,5,5,6],[13,1,17,6],[5,46,6,46],[2,46,3,46],[13,49,13,52],[13,53,13,56],[14,48,15,48],[14,49,15,52],[14,53,15,56],[16,50,16,52],[16,53,17,56],[17,50,17,52],[8,46,9,46],[7,16,8,17],[28,1,32,6],[33,1,37,6],[2,16,4,17],[6,16,6,17],[7,1,7,6],[8,1,12,6],[1,16,1,17],[1,12,1,13],[1,10,1,11],[2,10,3,11],[2,12,3,13],[10,10,10,13],[11,10,12,13],[13,10,27,13],[7,10,8,10],[7,11,8,13],[18,1,22,6],[23,1,27,6],[1,1,2,6],[4,5,4,6],[4,3,4,4],[4,1,4,2],[5,1,5,2],[26,48,27,48],[26,49,27,52],[28,50,28,52],[29,50,29,52],[25,49,25,52],[25,53,25,56],[28,53,29,56],[26,53,27,56],[32,49,33,49],[32,50,33,50],[32,51,33,51],[32,52,33,52],[32,53,33,56],[38,48,39,48],[38,49,39,52],[38,53,39,56],[49,49,49,52],[49,53,49,56],[50,48,51,48],[50,49,51,52],[50,53,51,56],[46,53,47,56],[44,49,45,49],[44,50,45,50],[44,51,45,51],[44,52,45,52],[44,53,45,56],[46,49,47,49],[46,50,47,50],[46,51,47,51],[46,52,47,52],[40,50,40,52],[40,53,41,56],[41,50,41,52],[42,49,43,49],[42,50,43,50],[42,51,43,51],[58,53,59,56],[61,49,61,52],[61,53,61,56],[62,48,63,48],[62,49,63,52],[62,53,63,56],[52,50,52,52],[52,53,53,56],[53,50,53,52],[54,49,55,49],[54,50,55,50],[54,51,55,51],[54,52,55,52],[54,53,55,56],[56,49,57,49],[56,50,57,50],[56,51,57,51],[56,52,57,52],[56,53,57,56],[70,49,71,49],[70,50,71,50],[70,51,71,51],[70,52,71,52],[70,53,71,56],[5,28,6,28],[8,28,9,28],[64,50,64,52],[64,53,65,56],[65,50,65,52],[66,49,67,49],[66,50,67,50],[66,51,67,51],[66,52,67,52],[66,53,67,56],[68,49,69,49],[68,50,69,50],[68,51,69,51],[68,52,69,52],[68,53,69,56],[58,49,59,49],[58,50,59,50],[58,51,59,51],[58,52,59,52]]}
[]
[null,"Name",null,null,null,null,null,null,null,null,"Speed",null,"Turn Allowance",null,null,null,"Health",null,null,"Armor Class",null,null,null,"Detrements",null,"Triggers",null,null,"Cargo Capacity",null,null,"Rams",null,"Mounting","Range","To Hit","Damage",null,null,"Notes",null,"Cargo/Modification","Tonnage","Description",null,null,"Total Crew Capacity",null,"Size","Name",null,null,null,"Traits"]
[null,null,null,null,null,null,null,null,null,null,{"$f":"IF(H8,0,L5+L6-L7)","v":0},null,{"$f":"IF(H8,0,N5+N6-N7)","v":{"$error":"#N/A"}},null,null,null,50,null,null,{"$f":"U5+U6-U7","v":{"$error":"#N/A"}},null,null,null,null,null,false,null,null,{"$f":"B6-IF(Z8,MAX(2,ROUNDDOWN(0.2*B6,0)),0)-IF(Z12,MAX(2,ROUNDDOWN(0.2*B6,0)),0)+IF(Z13,MAX(1,ROUNDDOWN(0.2*B6,0)),0)+IF(Z14,MAX(1,ROUNDDOWN(0.2*B6,0)),0)-IF(Z16,MAX(1,ROUNDDOWN(0.1*B6,0)),0)-IF(Z17,MAX(1,ROUNDDOWN(0.1*B6,0)),0)+(MIN(0,AU6)*2)","v":0},null,null,null,null,"Forward","0",{"$f":"T10","v":{"$error":"#N/A"}},null,null,null,null,null,null,null,null,null,null,{"$f":"IF(2+ROUNDDOWN(B6/10,0)*2 < 4,0,2+ROUNDDOWN(B6/10,0)*2)","v":0}]
[null,null,null,null,null,null,null,null,null,null,null,null,null,null,null,null,null,null,null,null,null,null,null,null,null,false,null,null,null,null,null,null,null,"Rear","0",{"$f":"T10","v":{"$error":"#N/A"}}]
[null,"Tonnage",null,"Material",null,"Maneuverability Class",null,"Functional Class",null,null,"Base",null,"Base ",{"$f":"VLOOKUP(H6,Tables!F:I,2,FALSE)","v":{"$error":"#N/A"}},null,null,null,null,null,"Base",{"$f":"VLOOKUP(D6,Tables!B:C,2,FALSE)+Z8+Z9-Z11-Z13","v":{"$error":"#N/A"}},null,null,null,null,false,null,null,"Weapon Space Used",null,null,null,null,null,null,null,null,null,null,null,null,null,null,null,null,null,"Available Quarters",null,null,"Class"]
[null,null,null,null,null,null,null,{"$f":"INDEX(Tables!F:F,MIN(MAX(MATCH(F6,Tables!F:F)+Z9-Z10-Z11-Z12+Z14+Z3+Z4+(SUM(AW:AW)<AU9),1),7))","v":{"$error":"#N/A"}},null,null,"Bonuses",null,"Bonuses",null,null,null,null,null,null,"Bonuses",null,null,null,null,null,null,null,null,{"$f":"SUM(AM:AM)","v":0},{"$f":"AC6/B6","v":{"$error":"#DIV/0!"}},null,"Name","Disabled?","Mounting","Range","To Hit","Damage","Critical","Tonnage","Notes",null,null,null,null,null,null,{"$f":"AU3-SUM(AW:AW)","v":0},null,null,"Heritage"]
[null,null,null,null,null,null,null,"Disabled?",null,null,"Detriments",null,"Detriments",null,null,null,"Damage/Repair Value",null,null,"Detriments",null,null,null,"Modifications",null,null,null,null,null,null,null,null,null,null,null,null,null,null,null,"Free Light/Medium weapon.  Does not take up cargo space",null,null,null,null,null,null,null,null,null,"Cost",null,"Morale"]
[null,"Notes",null,null,null,null,null,{"$f":"OR(Z5,IF(AU3,SUM(AW:AW)<(1+Z10),FALSE))","v":false},null,null,"Turn Conditions",{"$f":"IF(H8,\"Disabled!\",VLOOKUP(H6,Tables!F:I,4,FALSE))","v":{"$error":"#N/A"}},null,null,null,null,null,null,null,null,null,null,null,null,null,false,null,null,"Storage Space Used",null,null,null,null,null,null,null,null,null,null,null,null,null,null,null,null,null,"Minimum Crew"]
[null,null,null,null,null,null,null,null,null,null,null,null,null,null,null,null,null,null,null,"Reaction Modifier",null,null,null,null,null,false,null,null,{"$f":"SUM(AQ:AQ)","v":0},{"$f":"AC9/B6","v":{"$error":"#DIV/0!"}},null,null,null,null,null,null,null,null,null,null,null,null,null,null,null,null,{"$f":"ROUNDDOWN(AU3/4*(1+Z10),0)","v":0},null,null,"Attack",null,"Defense"]
[null,null,null,null,null,null,null,null,null,null,null,null,null,null,null,null,null,null,null,{"$f":"IF(H8,0,U12+U13-U14)","v":{"$error":"#N/A"}},null,null,null,null,null,false]
[null,null,null,null,null,null,null,null,null,null,"Helm",null,null,null,null,null,null,null,null,null,null,null,null,null,null,false,null,null,"Open Space",null,null,null,null,null,null,null,null,null,null,null,null,null,null,null,null,null,null,null,null,"Power",null,"Toughness"]
[null,null,null,null,null,null,null,null,null,null,null,null,null,null,null,null,null,null,null,"Base ",{"$f":"VLOOKUP(H6,Tables!F:I,3,FALSE)","v":{"$error":"#N/A"}},null,null,null,null,false,null,null,{"$f":"AC3-AC6-AC9","v":0}]
[null,null,null,null,null,null,null,null,null,null,null,null,null,null,null,null,null,null,null,"Bonuses",null,null,null,null,null,false]
[null,null,null,null,null,null,null,null,null,null,null,null,null,null,null,null,null,null,null,"Detriments",null,null,null,null,null,false,null,null,null,null,null,null,null,null,null,null,null,null,null,null,null,null,null,null,null,null,null,null,"Size","Name",null,null,null,"Traits"]
[null,null,null,null,null,null,null,null,null,null,null,null,null,null,null,null,null,null,null,null,null,null,null,null,null,false]
[null,null,null,null,null,null,null,null,null,null,null,null,null,null,null,null,null,null,null,"Damage Threshold",null,null,null,null,null,false]
[null,null,null,null,null,null,null,null,null,null,null,null,null,null,null,null,null,null,null,{"$f":"IF((B6*10)<Tables!L1,0,IF((B6*10)<Tables!L2,Tables!M2,IF((B6*10)<Tables!L3,Tables!M3,IF((B6*10)<Tables!L4,Tables!M4,IF((B6*10)<Tables!L5,Tables!M5,Tables!M6)))))","v":0},null,null,null,null,null,false,null,null,null,null,null,null,null,null,null,null,null,null,null,null,null,null,null,null,null,null,null,null,null,"Class"]
[null,null,null,null,null,null,null,null,null,null,null,null,null,null,null,null,null,null,null,null,null,null,null,null,null,null,null,null,null,null,null,null,null,null,null,null,null,null,null,null,null,null,null,null,null,null,null,null,null,"Heritage"]
[null,null,null,null,null,null,null,null,null,null,null,null,null,null,null,null,null,null,null,null,null,null,null,null,null,null,null,null,null,null,null,null,null,null,null,null,null,null,null,null,null,null,null,null,null,null,null,null,null,"Cost",null,"Morale"]
[]
[null,null,null,null,null,null,null,null,null,null,null,null,null,null,null,null,null,null,null,null,null,null,null,null,null,null,null,null,null,null,null,null,null,null,null,null,null,null,null,null,null,null,null,null,null,null,null,null,null,"Attack",null,"Defense"]
[]
[null,null,null,null,null,null,null,null,null,null,null,null,null,null,null,null,null,null,null,null,null,null,null,null,null,null,null,null,null,null,null,null,null,null,null,null,null,null,null,null,null,null,null,null,null,null,null,null,null,"Power",null,"Toughness"]
[]
[]
[null,null,null,null,null,null,null,null,null,null,null,null,null,null,null,null,null,null,null,null,null,null,null,null,null,null,null,null,null,null,null,null,null,null,null,null,null,null,null,null,null,null,null,null,null,null,null,null,"Size","Name",null,null,null,"Traits"]
[]
[]
[null,null,null,null,null,null,null,null,null,null,null,null,null,null,null,null,null,null,null,null,null,null,null,null,null,null,null,null,null,null,null,null,null,null,null,null,null,null,null,null,null,null,null,null,null,null,null,null,null,"Class"]
[null,null,null,null,null,null,null,null,null,null,null,null,null,null,null,null,null,null,null,null,null,null,null,null,null,null,null,null,null,null,null,null,null,null,null,null,null,null,null,null,null,null,null,null,null,null,null,null,null,"Heritage"]
[null,null,null,null,null,null,null,null,null,null,null,null,null,null,null,null,null,null,null,null,null,null,null,null,null,null,null,null,null,null,null,null,null,null,null,null,null,null,null,null,null,null,null,null,null,null,null,null,null,"Cost",null,"Morale"]
[]
[null,null,null,null,null,null,null,null,null,null,null,null,null,null,null,null,null,null,null,null,null,null,null,null,null,null,null,null,null,null,null,null,null,null,null,null,null,null,null,null,null,null,null,null,null,null,null,null,null,"Attack",null,"Defense"]
[]
[null,null,null,null,null,null,null,null,null,null,null,null,null,null,null,null,null,null,null,null,null,null,null,null,null,null,null,null,null,null,null,null,null,null,null,null,null,null,null,null,null,null,null,null,null,null,null,null,null,"Power",null,"Toughness"]
[]
[]
[null,null,null,null,null,null,null,null,null,null,null,null,null,null,null,null,null,null,null,null,null,null,null,null,null,null,null,null,null,null,null,null,null,null,null,null,null,null,null,null,null,null,null,null,null,null,null,null,"Size","Name",null,null,null,"Traits"]
[]
[]
[null,null,null,null,null,null,null,null,null,null,null,null,null,null,null,null,null,null,null,null,null,null,null,null,null,null,null,null,null,null,null,null,null,null,null,null,null,null,null,null,null,null,null,null,null,null,null,null,null,"Class"]
[null,null,null,null,null,null,null,null,null,null,null,null,null,null,null,null,null,null,null,null,null,null,null,null,null,null,null,null,null,null,null,null,null,null,null,null,null,null,null,null,null,null,null,null,null,null,null,null,null,"Heritage"]
[null,null,null,null,null,null,null,null,null,null,null,null,null,null,null,null,null,null,null,null,null,null,null,null,null,null,null,null,null,null,null,null,null,null,null,null,null,null,null,null,null,null,null,null,null,null,null,null,null,"Cost",null,"Morale"]
[]
[null,null,null,null,null,null,null,null,null,null,null,null,null,null,null,null,null,null,null,null,null,null,null,null,null,null,null,null,null,null,null,null,null,null,null,null,null,null,null,null,null,null,null,null,null,null,null,null,null,"Attack",null,"Defense"]
[]
[null,null,null,null,null,null,null,null,null,null,null,null,null,null,null,null,null,null,null,null,null,null,null,null,null,null,null,null,null,null,null,null,null,null,null,null,null,null,null,null,null,null,null,null,null,null,null,null,null,"Power",null,"Toughness"]
[]
[]
[null,null,null,null,null,null,null,null,null,null,null,null,null,null,null,null,null,null,null,null,null,null,null,null,null,null,null,null,null,null,null,null,null,null,null,null,null,null,null,null,null,null,null,null,null,null,null,null,"Size","Name",null,null,null,"Traits"]
[]
[]
[null,null,null,null,null,null,null,null,null,null,null,null,null,null,null,null,null,null,null,null,null,null,null,null,null,null,null,null,null,null,null,null,null,null,null,null,null,null,null,null,null,null,null,null,null,null,null,null,null,"Class"]
[null,null,null,null,null,null,null,null,null,null,null,null,null,null,null,null,null,null,null,null,null,null,null,null,null,null,null,null,null,null,null,null,null,null,null,null,null,null,null,null,null,null,null,null,null,null,null,null,null,"Heritage"]
[null,null,null,null,null,null,null,null,null,null,null,null,null,null,null,null,null,null,null,null,null,null,null,null,null,null,null,null,null,null,null,null,null,null,null,null,null,null,null,null,null,null,null,null,null,null,null,null,null,"Cost",null,"Morale"]
[]
[null,null,null,null,null,null,null,null,null,null,null,null,null,null,null,null,null,null,null,null,null,null,null,null,null,null,null,null,null,null,null,null,null,null,null,null,null,null,null,null,null,null,null,null,null,null,null,null,null,"Attack",null,"Defense"]
[]
[null,null,null,null,null,null,null,null,null,null,null,null,null,null,null,null,null,null,null,null,null,null,null,null,null,null,null,null,null,null,null,null,null,null,null,null,null,null,null,null,null,null,null,null,null,null,null,null,null,"Power",null,"Toughness"]
[]
[]
[null,null,null,null,null,null,null,null,null,null,null,null,null,null,null,null,null,null,null,null,null,null,null,null,null,null,null,null,null,null,null,null,null,null,null,null,null,null,null,null,null,null,null,null,null,null,null,null,"Size","Name",null,null,null,"Traits"]
[]
[]
[null,null,null,null,null,null,null,null,null,null,null,null,null,null,null,null,null,null,null,null,null,null,null,null,null,null,null,null,null,null,null,null,null,null,null,null,null,null,null,null,null,null,null,null,null,null,null,null,null,"Class"]
[null,null,null,null,null,null,null,null,null,null,null,null,null,null,null,null,null,null,null,null,null,null,null,null,null,null,null,null,null,null,null,null,null,null,null,null,null,null,null,null,null,null,null,null,null,null,null,null,null,"Heritage"]
[null,null,null,null,null,null,null,null,null,null,null,null,null,null,null,null,null,null,null,null,null,null,null,null,null,null,null,null,null,null,null,null,null,null,null,null,null,null,null,null,null,null,null,null,null,null,null,null,null,"Cost",null,"Morale"]
[]
[null,null,null,null,null,null,null,null,null,null,null,null,null,null,null,null,null,null,null,null,null,null,null,null,null,null,null,null,null,null,null,null,null,null,null,null,null,null,null,null,null,null,null,null,null,null,null,null,null,"Attack",null,"Defense"]
[]
[null,null,null,null,null,null,null,null,null,null,null,null,null,null,null,null,null,null,null,null,null,null,null,null,null,null,null,null,null,null,null,null,null,null,null,null,null,null,null,null,null,null,null,null,null,null,null,null,null,"Power",null,"Toughness"]

{"sheet":"Tables","index":1,"n_rows":23,"n_cols":13,"rows_kept":23,"cut":false,"hidden":true,"merged":[]}
["Materials","Cloth",11,null,"Reaction mods","A",3,8,"Executing a turn does not cost speed."," ","DT",100,0]
[null,"Leather",12,null,null,"B",2,6,{"$f":"\"\"","v":""}," ",null,300,10]
[null,"Crystal",13,null,null,"C",2,4,{"$f":"\"\"","v":""}," ",null,500,15]
[null,"Glass",13,null,null,"D",1,2,{"$f":"\"\"","v":""}," ",null,1000,20]
[null,"Ceramic",13,null,null,"E",1,0,{"$f":"\"\"","v":""}," ",null,1500,25]
[null,"Thin Wood",14,null,null,"F",1,-2,"Ship must move forward one hex before executing a turn."," ",null,"Max",30]
[null,"Thick Wood",15,null,null,"G",0,-4,"30% success when executing a turn.  Speed is spent on attempt."," "]
[null,"Bone",15,null,null,null,null,null,null," "]
[null,"Stone",17,null,null,null,null,null,null," "]
[null,"Metal",19,null,null,null,null,null,null," "]
[null,null,null,null,null,null,null,null,null," "]
[null,null,null,null,null,null,null,null,null," "]
[null,null,null,null,null,null,null,null,null," "]
[null,null,null,null,null,null,null,null,null," "]
[]
[null,null,null,null,null,null,null,null,null," "]
[null,null,null,null,null,null,null,null,null," "]
[null,null,null,null,null,null,null,null,null," "]
[null,null,null,null,null,null,null,null,null," "]
[null,null,null,null,null,null,null,null,null," "]
[null,null,null,null,null,null,null,null,null," "]
[null,null,null,null,null,null,null,null,null," "]
[null,null,null,null,null,null,null,null,null," "]